Workbook

Sheet T (hidden)
A1: Tipo de vehículo | C1: Pregunta | F1: Adquisicion | H1: Editar
A2: Vehículo articulado de carga general de larga distancia | B2: T1 | C2: Si | D2: S | F2: Compra
A3: Vehículo articulado de carga general de corta distancia | B3: T2 | C3: No | D3: N | F3: Alquiler, leasing…
A4: Portacontenedores de larga distancia | B4: T3
A5: Portacontenedores de corta distancia | B5: T4
A6: Volquete articulado de obra | B6: T5
A7: Vehículo de 2 ejes de carga general | B7: T6
A8: Vehículo articulado de mercancías peligrosas (químicas) de larga distancia | B8: T7
A9: Vehículo articulado de productos derivados del petróleo (gasoil, gasolina, fueloil) | B9: T8
A10: Vehículo cisterna de mercancías peligrosas (gases) de larga distancia | B10: T9
A11: Vehículo frigorífico articulado | B11: T10
A12: Vehículo frigorífico de 2 ejes | B12: T11
A13: Volquete graneles de larga distancia | B13: T12
A14: Volquete graneles de corta distancia | B14: T13
A15: Camión ligero 3T distribución | B15: T14
A16: Furgonetas | B16: T15
A17: Vehículo genérico (para todos aquellos vehículos que no puedan ser englobados en las categorías anteriores) | B17: T16

Sheet DE (hidden)
D1: T1A | E1: T1 | F1: T2A | G1: T2 | H1: T3A | I1: T3 | J1: T4A | K1: T4 | L1: T5A | M1: T5 | N1: T6A | O1: T6 | P1: T7A | Q1: T7 | R1: T8A | S1: T8 | T1: T9A | U1: T9 | V1: T10A | W1: T10 | X1: T11A | Y1: T11 | Z1: T12A | AA1: T12 | AB1: T13A | AC1: T13 | AD1: T14A | AE1: T14 | AF1: T15A | AG1: T15 | AH1: T16A | AI1: T16
B2: Descripción: | E2: Vehículo articulado de carga general de larga distancia | G2: Vehículo articulado de carga general de corta distancia | I2: Portacontenedores de larga distancia | K2: Portacontenedores de corta distancia | M2: Volquete articulado de obra | O2: Vehículo de 2 ejes de carga general | Q2: Vehículo articulado de mercancías peligrosas (químicas) de larga distancia | S2: Vehículo articulado de productos derivados del petróleo (gasoil, gasolina, fueloil) | U2: Vehículo cisterna de mercancías peligrosas (gases) de larga distancia | W2: Vehículo frigorífico articulado | Y2: Vehículo frigorífico de 2 ejes | AA2: Volquete graneles de larga distancia | AC2: Volquete graneles de corta distancia | AE2: Camión ligero 3T distribución | AG2: Furgonetas | AI2: Vehículo genérico (para todos aquellos vehículos que no puedan ser englobados en las categorías anteriores) | AJ2: 03/07/2025
B3: Tipo interes | E3: 0.0453 | G3: 0.0453 | I3: 0.0453 | K3: 0.0453 | M3: 0.0453 | O3: 0.0453 | Q3: 0.0453 | S3: 0.0453 | U3: 0.0453 | W3: 0.0453 | Y3: 0.0453 | AA3: 0.0453 | AC3: 0.0453 | AE3: 0.0453 | AG3: 0.0453 | AI3: 0.0453
B4: Potencia | E4: 455 | G4: 455 | I4: 455 | K4: 455 | M4: 455 | O4: 280 | Q4: 455 | S4: 455 | U4: 455 | W4: 455 | Y4: 280 | AA4: 455 | AC4: 455 | AE4: 130 | AG4: 130 | AI4: 455
B5: MMA | E5: 40000 | G5: 40000 | I5: 44000 | K5: 44000 | M5: 40000 | O5: 18000 | Q5: 40000 | S5: 40000 | U5: 40000 | W5: 40000 | Y5: 18000 | AA5: 40000 | AC5: 40000 | AE5: 35000 | AG5: 3500 | AI5: 40000
B6: Carga útil | E6: 25000 | G6: 25000 | I6: 26250 | K6: 26250 | M6: 23000 | O6: 9500 | Q6: 0 | S6: 0 | U6: 0 | W6: 24000 | Y6: 9000 | AA6: 24000 | AC6: 24000 | AE6: 1500 | AG6: 1500 | AI6: 25000
B7: Número de ejes | E7: 5 | G7: 5 | I7: 6 | K7: 6 | M7: 4 | O7: 2 | Q7: 5 | S7: 5 | U7: 5 | W7: 5 | Y7: 2 | AA7: 5 | AC7: 5 | AE7: 2 | AG7: 2 | AI7: 5
B8: Número de neumáticos | E8: 12 | G8: 12 | I8: 14 | K8: 14 | M8: 14 | O8: 6 | Q8: 12 | S8: 12 | U8: 12 | W8: 12 | Y8: 6 | AA8: 12 | AC8: 12 | AE8: 4 | AG8: 4 | AI8: 12
B9: Kilómetros recorridos anualmente | E9: 150000 | G9: 120000 | I9: 100000 | K9: 100000 | M9: 60000 | O9: 90000 | Q9: 105000 | S9: 100000 | U9: 100000 | W9: 120000 | Y9: 70000 | AA9: 120000 | AC9: 120000 | AE9: 50000 | AG9: 50000 | AI9: 120000
B10: Kilómetros recorridos anualmente en carga (%, km) | D10: 90 | E10: =E9*D10/100 -> 135000 | F10: 85 | G10: =G9*F10/100 -> 102000 | H10: 85 | I10: =I9*H10/100 -> 85000 | J10: 85 | K10: 85000 | L10: 50 | M10: =M9*L10/100 -> 30000 | N10: 80 | O10: =O9*N10/100 -> 72000 | P10: 75 | Q10: =Q9*P10/100 -> 78750 | R10: 50 | S10: =S9*R10/100 -> 50000 | T10: 50 | U10: 50000 | V10: 80 | W10: =W9*V10/100 -> 96000 | X10: 75 | Y10: =Y9*X10/100 -> 52500 | Z10: 80 | AA10: =AA9*Z10/100 -> 96000 | AB10: 80 | AC10: 96000 | AD10: 75 | AE10: =AE9*AD10/100 -> 37500 | AF10: 75 | AG10: =AG9*AF10/100 -> 37500 | AH10: 85 | AI10: =AI9*AH10/100 -> 102000
B11: Kilómetros recorridos anualmente en vacío (%, km) | D11: 10 | E11: =E9*D11/100 -> 15000 | F11: 15 | G11: =G9*F11/100 -> 18000 | H11: 15 | I11: =I9*H11/100 -> 15000 | J11: 15 | K11: =K9*J11/100 -> 15000 | L11: 50 | M11: =M9*L11/100 -> 30000 | N11: 20 | O11: =O9*N11/100 -> 18000 | P11: 25 | Q11: =Q9*P11/100 -> 26250 | R11: 50 | S11: =S9*R11/100 -> 50000 | T11: 50 | U11: =U9*T11/100 -> 50000 | V11: 20 | W11: =W9*V11/100 -> 24000 | X11: 25 | Y11: =Y9*X11/100 -> 17500 | Z11: 20 | AA11: =AA9*Z11/100 -> 24000 | AB11: 20 | AC11: =AC9*AB11/100 -> 24000 | AD11: 25 | AE11: =AE9*AD11/100 -> 12500 | AF11: 25 | AG11: =AG9*AF11/100 -> 12500 | AH11: 15 | AI11: =AI9*AH11/100 -> 18000
B12: Consumo medio (litros/100km) | E12: 35 | G12: 35 | I12: 35 | K12: 35 | M12: 38.5 | O12: 25 | Q12: 34.5 | S12: 34.5 | U12: 34.5 | W12: 35 | Y12: 25 | AA12: 35 | AC12: 35 | AE12: 11.5 | AG12: 11.5 | AI12: 35
B13: Horas trabajadas al año | E13: 2000 | G13: 1800 | I13: 1800 | K13: 1800 | M13: 1800 | O13: 1800 | Q13: 1800 | S13: 1800 | U13: 1800 | W13: 1800 | Y13: 1800 | AA13: 1800 | AC13: 1800 | AE13: 1800 | AG13: 1800 | AI13: 1800
B14: Horas trabajadas al año en carga (%, h) | D14: 90 | E14: =E13*D14/100 -> 1800 | F14: 85 | G14: =G13*F14/100 -> 1530 | H14: 85 | I14: =I13*H14/100 -> 1530 | J14: 85 | K14: 1530 | L14: 50 | M14: =M13*L14/100 -> 900 | N14: 80 | O14: =O13*N14/100 -> 1440 | P14: 75 | Q14: =Q13*P14/100 -> 1350 | R14: 50 | S14: =S13*R14/100 -> 900 | T14: 50 | U14: 900 | V14: 80 | W14: =W13*V14/100 -> 1440 | X14: 75 | Y14: =Y13*X14/100 -> 1350 | Z14: 80 | AA14: =AA13*Z14/100 -> 1440 | AB14: 80 | AC14: 1440 | AD14: 75 | AE14: =AE13*AD14/100 -> 1350 | AF14: 75 | AG14: =AG13*AF14/100 -> 1350 | AH14: 85 | AI14: =AI13*AH14/100 -> 1530
B15: Horas trabajadas al año en vacío (%, h) | D15: 10 | E15: =E13*D15/100 -> 200 | F15: 15 | G15: =G13*F15/100 -> 270 | H15: 15 | I15: =I13*H15/100 -> 270 | J15: 15 | K15: =K13*J15/100 -> 270 | L15: 50 | M15: =M13*L15/100 -> 900 | N15: 20 | O15: =O13*N15/100 -> 360 | P15: 25 | Q15: =Q13*P15/100 -> 450 | R15: 50 | S15: =S13*R15/100 -> 900 | T15: 50 | U15: =U13*T15/100 -> 900 | V15: 20 | W15: =W13*V15/100 -> 360 | X15: 25 | Y15: =Y13*X15/100 -> 450 | Z15: 20 | AA15: =AA13*Z15/100 -> 360 | AB15: 20 | AC15: =AC13*AB15/100 -> 360 | AD15: 25 | AE15: =AE13*AD15/100 -> 450 | AF15: 25 | AG15: =AG13*AF15/100 -> 450 | AH15: 15 | AI15: =AI13*AH15/100 -> 270
B16: Días trabajados al año | E16: 250 | G16: 225 | I16: 225 | K16: 225 | M16: 225 | O16: 225 | Q16: 225 | S16: 225 | U16: 225 | W16: 225 | Y16: 225 | AA16: 225 | AC16: 225 | AE16: 225 | AG16: 225 | AI16: 225
B17: Horas trabajadas por jornada | E17: =E13/E16 -> 8 | G17: =G13/G16 -> 8 | I17: =I13/I16 -> 8 | K17: 8 | M17: =M13/M16 -> 8 | O17: =O13/O16 -> 8 | Q17: =Q13/Q16 -> 8 | S17: =S13/S16 -> 8 | U17: 8 | W17: =W13/W16 -> 8 | Y17: =Y13/Y16 -> 8 | AA17: =AA13/AA16 -> 8 | AC17: 8 | AE17: =AE13/AE16 -> 8 | AG17: =AG13/AG16 -> 8 | AI17: =AI13/AI16 -> 8
B18: Pago de leasing o renta anual (€) | E18: 0 | G18: 0 | I18: 0 | K18: 0 | M18: 0 | O18: 0 | Q18: 0 | S18: 0 | U18: 0 | W18: 0 | Y18: 0 | AA18: 0 | AC18: 0 | AE18: 0 | AG18: 0 | AI18: 0
B19: Precio de tarifa sin IVA (€) | E19: 129778.36 | G19: 129778.36 | I19: 129778.36 | K19: 129778.36 | M19: 129778.36 | O19: 80249.76 | Q19: 129778.36 | S19: 129778.36 | U19: 129778.36 | W19: 129778.36 | Y19: 80249.76 | AA19: 129778.36 | AC19: 129778.36 | AE19: 27162.55 | AG19: 27162.55 | AI19: 129778.36
B20: Descuento sobre tarifa (%) | E20: 10 | G20: 10 | I20: 10 | K20: 10 | M20: 10 | O20: 10 | Q20: 10 | S20: 10 | U20: 10 | W20: 10 | Y20: 10 | AA20: 10 | AC20: 10 | AE20: 10 | AG20: 10 | AI20: 10
B21: Precio de adquisición sin IVA (€) | E21: =ROUND((1-E20/100)*E19,0) -> 116801 | G21: =(1-G20/100)*G19 -> 116801 | I21: =(1-I20/100)*I19 -> 116801 | K21: 116801 | M21: =(1-M20/100)*M19 -> 116801 | O21: =(1-O20/100)*O19 -> 72225 | Q21: =(1-Q20/100)*Q19 -> 116801 | S21: =(1-S20/100)*S19 -> 116801 | U21: 116801 | W21: =(1-W20/100)*W19 -> 116801 | Y21: =(1-Y20/100)*Y19 -> 72225 | AA21: =(1-AA20/100)*AA19 -> 116801 | AC21: 116801 | AE21: =(1-AE20/100)*AE19 -> 24446 | AG21: =(1-AG20/100)*AG19 -> 24446 | AI21: =(1-AI20/100)*AI19 -> 116801
B22: Vida útil (años) | E22: 5 | G22: 6 | I22: 8 | K22: 8 | M22: 8 | O22: 10 | Q22: 6 | S22: 6 | U22: 6 | W22: 6 | Y22: 10 | AA22: 6 | AC22: 6 | AE22: 8 | AG22: 8 | AI22: 6
B23: Valor residual sobre precio de tarifa (%) | D23: 15 | E23: =ROUND(E19*D23/100,0) -> 19467 | F23: 20 | G23: =G19*F23/100 -> 25956 | H23: 20 | I23: =I19*H23/100 -> 25956 | J23: 20 | K23: =K19*J23/100 -> 25956 | L23: 20 | M23: =M19*L23/100 -> 25956 | N23: 10 | O23: =O19*N23/100 -> 8025 | P23: 20 | Q23: =Q19*P23/100 -> 25956 | R23: 20 | S23: =S19*R23/100 -> 25956 | T23: 20 | U23: =U19*T23/100 -> 25956 | V23: 20 | W23: =W19*V23/100 -> 25956 | X23: 10 | Y23: =Y19*X23/100 -> 8025 | Z23: 20 | AA23: =AA19*Z23/100 -> 25956 | AB23: 20 | AC23: =AC19*AB23/100 -> 25956 | AD23: 15 | AE23: =AE19*AD23/100 -> 4074 | AF23: 15 | AG23: =AG19*AF23/100 -> 4074 | AH23: 20 | AI23: =AI19*AH23/100 -> 25956
B24: AMORTIZACIÓN DEL VEHÍCULO DE TRACCIÓN | E24: =IFERROR(ROUND((E21-E23-E102)/E22,0),0) -> 17742 | G24: =IFERROR(ROUND((G21-G23-G102)/G22,0),0) -> 13991 | I24: =IFERROR(ROUND((I21-I23-I102)/I22,0),0) -> 10517 | K24: =IFERROR(ROUND((K21-K23-K102)/K22,0),0) -> 10517 | M24: =IFERROR(ROUND((M21-M23-M102)/M22,0),0) -> 9846 | O24: =IFERROR(ROUND((O21-O23-O102)/O22,0),0) -> 6091 | Q24: =IFERROR(ROUND((Q21-Q23-Q102)/Q22,0),0) -> 14134 | S24: =IFERROR(ROUND((S21-S23-S102)/S22,0),0) -> 14182 | U24: =IFERROR(ROUND((U21-U23-U102)/U22,0),0) -> 14182 | W24: =IFERROR(ROUND((W21-W23-W102)/W22,0),0) -> 13991 | Y24: =IFERROR(ROUND((Y21-Y23-Y102)/Y22,0),0) -> 6164 | AA24: =IFERROR(ROUND((AA21-AA23-AA102)/AA22,0),0) -> 13991 | AC24: =IFERROR(ROUND((AC21-AC23-AC102)/AC22,0),0) -> 13991 | AE24: =IFERROR(ROUND((AE21-AE23-AE102)/AE22,0),0) -> 2459 | AG24: =IFERROR(ROUND((AG21-AG23-AG102)/AG22,0),0) -> 2459 | AI24: =IFERROR(ROUND((AI21-AI23-AI102)/AI22,0),0) -> 13991
B25: GASTOS FINANCIEROS DEL VEHÍCULO DE TRACCIÓN | E25: =IFERROR(ROUND((E21-E23-E102)*(E$3/(1-POWER(1+E$3,-E22))-1/E22),0),0) -> 2482 | G25: =IFERROR(ROUND((G21-G23-G102)*(G$3/(1-POWER(1+G$3,-G22))-1/G22),0),0) -> 2300 | I25: =IFERROR(ROUND((I21-I23-I102)*(I$3/(1-POWER(1+I$3,-I22))-1/I22),0),0) -> 2254 | K25: =IFERROR(ROUND((K21-K23-K102)*(K$3/(1-POWER(1+K$3,-K22))-1/K22),0),0) -> 2254 | M25: =IFERROR(ROUND((M21-M23-M90*M94-M91*M95-M92*M96)*(M$3/(1-POWER(1+M$3,-M22))-1/M22),0),0) -> 2111 | O25: =IFERROR(ROUND((O21-O23-O102)*(O$3/(1-POWER(1+O$3,-O22))-1/O22),0),0) -> 1618 | Q25: =IFERROR(ROUND((Q21-Q23-Q102)*(Q$3/(1-POWER(1+Q$3,-Q22))-1/Q22),0),0) -> 2324 | S25: =IFERROR(ROUND((S21-S23-S90*S102)*(S$3/(1-POWER(1+S$3,-S22))-1/S22),0),0) -> 2332 | U25: =IFERROR(ROUND((U21-U23-U102)*(U$3/(1-POWER(1+U$3,-U22))-1/U22),0),0) -> 2332 | W25: =IFERROR(ROUND((W21-W23-W102)*(W$3/(1-POWER(1+W$3,-W22))-1/W22),0),0) -> 2300 | Y25: =IFERROR(ROUND((Y21-Y23-Y102)*(Y$3/(1-POWER(1+Y$3,-Y22))-1/Y22),0),0) -> 1637 | AA25: =IFERROR(ROUND((AA21-AA23-AA102)*(AA$3/(1-POWER(1+AA$3,-AA22))-1/AA22),0),0) -> 2300 | AC25: =IFERROR(ROUND((AC21-AC23-AC102)*(AC$3/(1-POWER(1+AC$3,-AC22))-1/AC22),0),0) -> 2300 | AE25: =IFERROR(ROUND((AE21-AE23-AE102)*(AE$3/(1-POWER(1+AE$3,-AE22))-1/AE22),0),0) -> 527 | AG25: =IFERROR(ROUND((AG21-AG23-AG90*AG102)*(AG$3/(1-POWER(1+AG$3,-AG22))-1/AG22),0),0) -> 527 | AI25: =IFERROR(ROUND((AI21-AI23-AI90*AI102)*(AI$3/(1-POWER(1+AI$3,-AI22))-1/AI22),0),0) -> 2300
B26: Pago de alquiler o leasing anual (€) | O26: 0 | Y26: 0 | AI26: 0
B27: Precio de tarifa sin IVA (€) | O27: 8705.35 | Y27: 44519.11 | AI27: 0
B28: Descuento sobre tarifa (%) | O28: 5 | Y28: 5 | AI28: 0
B29: Precio de adquisición sin IVA (€) | O29: =ROUND((1-O28/100)*O27,0) -> 8270 | Y29: =ROUND((1-Y28/100)*Y27,0) -> 42293 | AI29: 0
B30: Vida útil (años) | O30: 10 | Y30: 10 | AI30: 0
B31: Valor residual sobre precio de tarifa (%) | N31: 10 | O31: =ROUND(O27*N31/100,0) -> 871 | X31: 10 | Y31: =ROUND(Y27*X31/100,0) -> 4452 | AH31: 0 | AI31: 0
B32: AMORTIZACION CARROZADO | O32: =IFERROR(ROUND((O29-O31)/O30,0),0) -> 740 | Y32: =IFERROR(ROUND((Y29-Y31)/Y30,0),0) -> 3784 | AI32: 0
B33: GASTOS FINANCIEROS CARROZADO | O33: =IFERROR(ROUND((O29-O31)*(O$3/(1-POWER(1+O$3,-O30))-1/O30),0),0) -> 196.56 | Y33: =IFERROR(ROUND((Y29-Y31)*(Y$3/(1-POWER(1+Y$3,-Y30))-1/Y30),0),0) -> 1005.26 | AI33: 0
B34: Pago de leasing o renta anual (€) | E34: 0 | G34: 0 | I34: 0 | K34: 0 | M34: 0 | Q34: 0 | S34: 0 | U34: 0 | W34: 0 | AA34: 0 | AC34: 0 | AI34: 0
B35: Precio de tarifa sin IVA (€) | E35: 40351.63 | G35: 40351.63 | I35: 31645.67 | K35: 31645.67 | M35: 35822.42 | Q35: 99364.18 | S35: 99364.18 | U35: 99364.18 | W35: 69541.85 | AA35: 43628.72 | AC35: 43628.72 | AI35: 40351.63
B36: Descuento sobre tarifa (%) | E36: 5 | G36: 5 | I36: 5 | K36: 5 | M36: 5 | Q36: 5 | S36: 5 | U36: 5 | W36: 5 | AA36: 5 | AC36: 5 | AI36: 5
B37: Precio de adquisición sin IVA (€) | E37: =ROUND((1-E36/100)*E35,0) -> 38334 | G37: =ROUND((1-G36/100)*G35,0) -> 38334 | I37: =ROUND((1-I36/100)*I35,0) -> 30063 | K37: =ROUND((1-K36/100)*K35,0) -> 30063 | M37: =ROUND((1-M36/100)*M35,0) -> 34031 | Q37: =ROUND((1-Q36/100)*Q35,0) -> 94396 | S37: =ROUND((1-S36/100)*S35,0) -> 94396 | U37: =ROUND((1-U36/100)*U35,0) -> 94396 | W37: =ROUND((1-W36/100)*W35,0) -> 66065 | AA37: =ROUND((1-AA36/100)*AA35,0) -> 41447 | AC37: =ROUND((1-AC36/100)*AC35,0) -> 41447 | AI37: =ROUND((1-AI36/100)*AI35,0) -> 38334
B38: Vida útil (años) | E38: 7 | G38: 8 | I38: 12 | K38: 12 | M38: 12 | Q38: 8 | S38: 10 | U38: 10 | W38: 10 | AA38: 10 | AC38: 10 | AI38: 8
B39: Valor residual sobre precio de tarifa (%) | D39: 10 | E39: =ROUND(E35*D39/100,0) -> 4035 | F39: 15 | G39: =ROUND(G35*F39/100,0) -> 6053 | H39: 15 | I39: =ROUND(I35*H39/100,0) -> 4747 | J39: 15 | K39: =ROUND(K35*J39/100,0) -> 4747 | L39: 15 | M39: =ROUND(M35*L39/100,0) -> 5373 | P39: 20 | Q39: =ROUND(Q35*P39/100,0) -> 19873 | R39: 15 | S39: =ROUND(S35*R39/100,0) -> 14905 | T39: 15 | U39: =ROUND(U35*T39/100,0) -> 14905 | V39: 15 | W39: =ROUND(W35*V39/100,0) -> 10431 | Z39: 10 | AA39: =ROUND(AA35*Z39/100,0) -> 4363 | AB39: 10 | AC39: =ROUND(AC35*AB39/100,0) -> 4363 | AH39: 15 | AI39: =ROUND(AI35*AH39/100,0) -> 6053
B40: AMORTIZACIÓN REMOLQUE | E40: =IFERROR(ROUND((E37-E39-E93*E97)/E38,0),0) -> 4284 | G40: =IFERROR(ROUND((G37-G39-G93*G97)/G38,0),0) -> 3496 | I40: =IFERROR(ROUND((I37-I39-I93*I97)/I38,0),0) -> 1750 | K40: =IFERROR(ROUND((K37-K39-K93*K97)/K38,0),0) -> 1750 | M40: =IFERROR(ROUND((M37-M39-M93*M97)/M38,0),0) -> 1909 | Q40: =IFERROR(ROUND((Q37-Q39-Q93*Q97)/Q38,0),0) -> 8776 | S40: =IFERROR(ROUND((S37-S39-S93*S97)/S38,0),0) -> 7518 | U40: =IFERROR(ROUND((U37-U39-U93*U97)/U38,0),0) -> 7518 | W40: =IFERROR(ROUND((W37-W39-W93*W97)/W38,0),0) -> 5132 | AA40: =IFERROR(ROUND((AA37-AA39-AA93*AA97)/AA38,0),0) -> 3277 | AC40: =IFERROR(ROUND((AC37-AC39-AC93*AC97)/AC38,0),0) -> 3277 | AI40: =IFERROR(ROUND((AI37-AI39-AI93*AI97)/AI38,0),0) -> 3496
B41: GASTOS FINANCIEROS REMOLQUE | E41: =IFERROR(ROUND((E37-E39-E93*E97)*(E$3/(1-POWER(1+E$3,-E38))-1/E38),0),0) -> 811 | G41: =IFERROR(ROUND((G37-G39-G93*G97)*(G$3/(1-POWER(1+G$3,-G38))-1/G38),0),0) -> 749 | I41: =IFERROR(ROUND((I37-I39-I93*I97)*(I$3/(1-POWER(1+I$3,-I38))-1/I38),0),0) -> 557 | K41: =IFERROR(ROUND((K37-K39-K93*K97)*(K$3/(1-POWER(1+K$3,-K38))-1/K38),0),0) -> 557 | M41: =IFERROR(ROUND((M37-M39-M93*M97)*(M$3/(1-POWER(1+M$3,-M38))-1/M38),0),0) -> 608 | Q41: =IFERROR(ROUND((Q37-Q39-Q93*Q97)*(Q$3/(1-POWER(1+Q$3,-Q38))-1/Q38),0),0) -> 1881 | S41: =IFERROR(ROUND((S37-S39-S93*S97)*(S$3/(1-POWER(1+S$3,-S38))-1/S38),0),0) -> 1997 | U41: =IFERROR(ROUND((U37-U39-U93*U97)*(U$3/(1-POWER(1+U$3,-U38))-1/U38),0),0) -> 1997 | W41: =IFERROR(ROUND((W37-W39-W93*W97)*(W$3/(1-POWER(1+W$3,-W38))-1/W38),0),0) -> 1363 | AA41: =IFERROR(ROUND((AA37-AA39-AA93*AA97)*(AA$3/(1-POWER(1+AA$3,-AA38))-1/AA38),0),0) -> 871 | AC41: =IFERROR(ROUND((AC37-AC39-AC93*AC97)*(AC$3/(1-POWER(1+AC$3,-AC38))-1/AC38),0),0) -> 871 | AI41: =IFERROR(ROUND((AI37-AI39-AI93*AI97)*(AI$3/(1-POWER(1+AI$3,-AI38))-1/AI38),0),0) -> 749
B42: Pago de alquiler o leasing anual (€) | W42: 0 | Y42: 0 | AI42: 0
B43: Precio de tarifa sin IVA (€) | W43: 0 | Y43: 0 | AI43: 0
B44: Descuento sobre tarifa (%) | W44: 0 | Y44: 0 | AI44: 0
B45: Precio de adquisición sin IVA (€) | W45: 0 | Y45: 0 | AI45: 0
B46: Vida útil (años) | W46: 0 | Y46: 0 | AI46: 0
B47: Valor residual sobre precio de tarifa (%) | V47: 0 | W47: 0 | X47: 0 | Y47: 0 | AH47: 0 | AI47: 0
B48: AMORTIZACION EQUIPOS | W48: 0 | Y48: 0 | AI48: 0
B49: GASTOS FINANCIEROS EQUIPOS | W49: 0 | Y49: 0 | AI49: 0
B50: COSTES DE ADQUISICION | E50: =E24+E25+E32+E33+E40+E41+E48+E49 -> 25319 | G50: =G24+G25+G32+G33+G40+G41+G48+G49 -> 20536 | I50: =I24+I25+I32+I33+I40+I41+I48+I49 -> 15078 | K50: 15078 | M50: =M24+M25+M32+M33+M40+M41+M48+M49 -> 14474 | O50: =O24+O25+O32+O33+O40+O41+O48+O49 -> 8645.56 | Q50: =Q24+Q25+Q32+Q33+Q40+Q41+Q48+Q49 -> 27115 | S50: =S24+S25+S32+S33+S40+S41+S48+S49 -> 26029 | U50: 26029 | W50: =W24+W25+W32+W33+W40+W41+W48+W49 -> 22786 | Y50: =Y24+Y25+Y32+Y33+Y40+Y41+Y48+Y49 -> 12590.26 | AA50: =AA24+AA25+AA32+AA33+AA40+AA41+AA48+AA49 -> 20439 | AC50: 20439 | AE50: =AE24+AE25+AE32+AE33+AE40+AE41+AE48+AE49 -> 2986 | AG50: =AG24+AG25+AG32+AG33+AG40+AG41+AG48+AG49 -> 2986 | AI50: =AI24+AI25+AI32+AI33+AI40+AI41+AI48+AI49 -> 20536
B51: Coste total anual del conductor, incluidos costes de empresa (Seg. Soc. y otros) € | E51: 39569.84 | G51: 35648.51 | I51: 35648.51 | K51: 35648.51 | M51: 35648.51 | O51: 35648.51 | Q51: 39213.35 | S51: 39213.35 | U51: 39213.35 | W51: 35648.51 | Y51: 35648.51 | AA51: 35648.51 | AC51: 35648.51 | AE51: 32083.65 | AG51: 32083.65 | AI51: 35648.51
B52: Dieta total diaria del conductor (€/día) | E52: 88.5 | G52: 39.44 | I52: 39.44 | K52: 39.44 | M52: 17.93 | O52: 35.85 | Q52: 39.44 | S52: 39.44 | U52: 39.44 | W52: 39.44 | Y52: 35.85 | AA52: 35.85 | AC52: 35.85 | AE52: 17.93 | AG52: 17.93 | AI52: 39.44
B53: Número de días con dieta al año | E53: 250 | G53: 225 | I53: 200 | K53: 200 | M53: 180 | O53: 133 | Q53: 200 | S53: 200 | U53: 200 | W53: 225 | Y53: 75 | AA53: 200 | AC53: 200 | AE53: 150 | AG53: 150 | AI53: 225
B54: Dietas totales anuales (€) | E54: =E52*E53 -> 22125 | G54: =G52*G53 -> 8874 | I54: =I52*I53 -> 7888 | K54: 7888 | M54: =M52*M53 -> 3227 | O54: =O52*O53 -> 4768 | Q54: =Q52*Q53 -> 7888 | S54: =S52*S53 -> 7888 | U54: 7888 | W54: =W52*W53 -> 8874 | Y54: =Y52*Y53 -> 2689 | AA54: =AA52*AA53 -> 7170 | AC54: 7170 | AE54: =AE52*AE53 -> 2690 | AG54: =AG52*AG53 -> 2690 | AI54: =AI52*AI53 -> 8874
B55: Plus anual de actividad del conductor (€/km) | E55: 0.0673 | G55: 0.0673 | I55: 0.0673 | K55: 0.0673 | M55: 0.0673 | O55: 0.0673 | Q55: 0.0965 | S55: 0.0965 | U55: 0.0965 | W55: 0.0673 | Y55: 0.0673 | AA55: 0.0673 | AC55: 0.0673 | AE55: 0.0673 | AG55: 0.0673 | AI55: 0.0673
B56: Plus anual de actividad del conductor (€) | E56: =E55*E9 -> 10095 | G56: =G55*G9 -> 8076 | I56: =I55*I9 -> 6730 | K56: 6730 | M56: =M55*M9 -> 4038 | O56: =O55*O9 -> 6057 | Q56: =Q55*Q9 -> 10133 | S56: =S55*S9 -> 9650 | U56: 9650 | W56: =W55*W9 -> 8076 | Y56: =Y55*Y9 -> 4711 | AA56: =AA55*AA9 -> 8076 | AC56: 8076 | AE56: =AE55*AE9 -> 3365 | AG56: =AG55*AG9 -> 3365 | AI56: =AI55*AI9 -> 8076
B57: COSTES DE PERSONAL | E57: =E51+E54+E56 -> 71789.84 | G57: =G51+G54+G56 -> 52598.51 | I57: =I51+I54+I56 -> 50266.51 | K57: 50266.51 | M57: =M51+M54+M56 -> 42913.51 | O57: =O51+O54+O56 -> 46473.51 | Q57: =Q51+Q54+Q56 -> 57234.35 | S57: =S51+S54+S56 -> 56751.35 | U57: 56751.35 | W57: =W51+W54+W56 -> 52598.51 | Y57: =Y51+Y54+Y56 -> 43048.51 | AA57: =AA51+AA54+AA56 -> 50894.51 | AC57: 50894.51 | AE57: =AE51+AE54+AE56 -> 38138.65 | AG57: =AG51+AG54+AG56 -> 38138.65 | AI57: =AI51+AI54+AI56 -> 52598.51
B58: Responsabilidad civil del vehículo de tracción (€) | E58: 1866.55 | G58: 1866.55 | I58: 1866.55 | K58: 1866.55 | M58: 1866.55 | O58: 1934.74 | Q58: 1866.55 | S58: 1866.55 | U58: 1866.55 | W58: 1866.55 | Y58: 1934.74 | AA58: 1866.55 | AC58: 1866.55 | AE58: 1306.87 | AG58: 1306.87 | AI58: 1866.55
B59: Responsabilidad civil del remolque o semirremolque (€) | E59: 588.86 | G59: 588.86 | I59: 588.86 | K59: 588.86 | M59: 588.86 | Q59: 588.86 | S59: 588.86 | U59: 588.86 | W59: 588.86 | AA59: 588.86 | AC59: 588.86 | AI59: 588.86
B60: Responsabilidad civil de la mercancía (€) | E60: 139.91 | G60: 139.91 | I60: 139.91 | K60: 139.91 | M60: 139.91 | O60: 139.91 | Q60: 738.46 | S60: 1170.13 | U60: 1170.13 | W60: 163.46 | Y60: 139.91 | AA60: 139.91 | AC60: 139.91 | AI60: 139.91
B61: Seguro de accidentes de personal de a bordo (€) | E61: 64.94 | G61: 64.94 | I61: 64.94 | K61: 64.94 | M61: 64.94 | O61: 64.94 | Q61: 64.94 | S61: 64.94 | U61: 64.94 | W61: 64.94 | Y61: 64.94 | AA61: 64.94 | AC61: 64.94 | AE61: 64.94 | AG61: 64.94 | AI61: 64.94
B62: Retirada del carné de conducir (€) | E62: 161.65 | G62: 161.65 | I62: 161.65 | K62: 161.65 | M62: 161.65 | O62: 161.65 | Q62: 161.65 | S62: 161.65 | U62: 161.65 | W62: 161.65 | Y62: 161.65 | AA62: 161.65 | AC62: 161.65 | AE62: 161.65 | AG62: 161.65 | AI62: 161.65
B63: Seguro de la mercancía (€) | E63: 792 | G63: 792 | I63: 430.47 | K63: 430.47 | M63: 0 | O63: 472.82 | Q63: 792 | S63: 792 | U63: 792 | W63: 1142.14 | Y63: 967 | AA63: 395.18 | AC63: 395.18 | AE63: 289.36 | AG63: 289.36 | AI63: 792
B64: Daños propios (seguro todo riesgo) (€) | E64: 3488.62 | G64: 3488.62 | I64: 3488.62 | K64: 3488.62 | M64: 3678.67 | O64: 1955.4 | Q64: 4191.22 | S64: 4191.22 | U64: 4191.22 | W64: 4544 | Y64: 1955.4 | AA64: 3488.62 | AC64: 3488.62 | AE64: 2190.53 | AG64: 2190.53 | AI64: 3488.62
B65: Otros seguros (€) | E65: 559.05 | G65: 559.05 | I65: 559.05 | K65: 559.05 | M65: 559.05 | O65: 559.05 | Q65: 559.05 | S65: 559.05 | U65: 559.05 | W65: 559.05 | Y65: 559.05 | AA65: 559.05 | AC65: 559.05 | AE65: 265.42 | AG65: 265.42 | AI65: 559.05
B66: COSTE TOTAL ANUAL DE LOS SEGUROS (€) | E66: =SUM(E58:E65) -> 7661.58 | G66: =SUM(G58:G65) -> 7661.58 | I66: =SUM(I58:I65) -> 7300.05 | K66: 7300.05 | M66: =SUM(M58:M65) -> 7059.63 | O66: =SUM(O58:O65) -> 5288.51 | Q66: =SUM(Q58:Q65) -> 8962.73 | S66: =SUM(S58:S65) -> 9394.4 | U66: 9394.4 | W66: =SUM(W58:W65) -> 9090.65 | Y66: =SUM(Y58:Y65) -> 5782.69 | AA66: =SUM(AA58:AA65) -> 7264.76 | AC66: 7264.76 | AE66: =SUM(AE58:AE65) -> 4278.77 | AG66: 4278.77 | AI66: =SUM(AI58:AI65) -> 7661.58
B67: Visados | E67: 17.21 | G67: 17.21 | I67: 17.21 | K67: 17.21 | M67: 17.21 | O67: 17.21 | Q67: 17.21 | S67: 17.21 | U67: 17.21 | W67: 17.21 | Y67: 17.21 | AA67: 17.21 | AC67: 17.21 | AE67: 16.52 | AG67: 16.52 | AI67: 17.21
B68: Inspección técnica de vehículos (I.T.V.) (€) | E68: 117.92 | G68: 117.92 | I68: 117.92 | K68: 117.92 | M68: 117.92 | O68: 71.74 | Q68: 117.92 | S68: 117.92 | U68: 117.92 | W68: 117.92 | Y68: 71.74 | AA68: 117.92 | AC68: 117.92 | AE68: 54.19 | AG68: 54.19 | AI68: 117.92
B69: Impuesto de actividades económicas (I.A.E.) repercutible a este vehículo (€) | E69: 373.05 | G69: 373.05 | I69: 373.05 | K69: 373.05 | M69: 373.05 | O69: 373.05 | Q69: 373.05 | S69: 373.05 | U69: 373.05 | W69: 373.05 | Y69: 373.05 | AA69: 373.05 | AC69: 373.05 | AE69: 305.78 | AG69: 305.78 | AI69: 373.05
B70: Impuesto de Vehículos de Tracción Mecánica (I.T.V.M.) (€) | E70: 321.16 | G70: 321.16 | I70: 321.16 | K70: 321.16 | M70: 321.16 | O70: 228.7 | Q70: 321.16 | S70: 321.16 | U70: 321.16 | W70: 321.16 | Y70: 228.7 | AA70: 321.16 | AC70: 321.16 | AE70: 160.58 | AG70: 160.58 | AI70: 321.16
B71: Revisión tacógrafo (€) | E71: 86.75 | G71: 86.75 | I71: 86.75 | K71: 86.75 | M71: 86.75 | O71: 86.75 | Q71: 86.75 | S71: 86.75 | U71: 86.75 | W71: 86.75 | Y71: 86.75 | AA71: 86.75 | AC71: 86.75 | AE71: 0 | AI71: 86.75
B72: Inspecciones A.T.P. (transporte mercancías perecederas) | W72: 79.87 | Y72: 79.87 | AI72: 0
B73: Inspecciones A.D.R. (transporte mercancías peligrosas) | Q73: 137.69 | S73: 729.78 | U73: 729.78 | AI73: 0
B74: Otros costes fiscales (€) | E74: 30.29 | G74: 0 | I74: 0 | K74: 0 | M74: 0 | O74: 0 | Q74: 0 | S74: 0 | U74: 0 | W74: 0 | Y74: 0 | AA74: 0 | AC74: 0 | AE74: 0 | AG74: 0 | AI74: 0
B75: COSTE FISCAL TOTAL ANUAL | E75: =SUM(E67:E74) -> 946.38 | G75: =SUM(G67:G74) -> 916.09 | I75: =SUM(I67:I74) -> 916.09 | K75: 916.09 | M75: =SUM(M67:M74) -> 916.09 | O75: =SUM(O67:O74) -> 777.45 | Q75: =SUM(Q67:Q74) -> 1053.78 | S75: =SUM(S67:S74) -> 1645.87 | U75: 1645.87 | W75: =SUM(W67:W74) -> 995.96 | Y75: =SUM(Y67:Y74) -> 857.32 | AA75: =SUM(AA67:AA74) -> 916.09 | AC75: 916.09 | AE75: =SUM(AE67:AE74) -> 537.07 | AG75: =SUM(AG67:AG74) -> 537.07 | AI75: =SUM(AI67:AI74) -> 916.09
B76: SEGUROS Y COSTES FISCALES | E76: =E66+E75 -> 8607.96 | G76: =G66+G75 -> 8577.67 | I76: =I66+I75 -> 8216.14 | K76: 8216.14 | M76: =M66+M75 -> 7975.72 | O76: =O66+O75 -> 6065.96 | Q76: =Q66+Q75 -> 10016.51 | S76: =S66+S75 -> 11040.27 | U76: 11040.27 | W76: =W66+W75 -> 10086.61 | Y76: =Y66+Y75 -> 6640.01 | AA76: =AA66+AA75 -> 8180.85 | AC76: 8180.85 | AE76: =AE66+AE75 -> 4815.84 | AG76: =AG66+AG75 -> 4815.84 | AI76: =AI66+AI75 -> 8577.67
B77: Precio del carburante, con IVA (€/litro) | E77: 1.4871 | G77: 1.4871 | I77: 1.4871 | K77: 1.4871 | M77: 1.4871 | O77: 1.4871 | Q77: 1.4871 | S77: 1.4871 | U77: 1.4871 | W77: 1.4871 | Y77: 1.4871 | AA77: 1.4871 | AC77: 1.4871 | AE77: 1.4871 | AG77: 1.4871 | AI77: 1.4871
B78: Descuento (€/litro) | E78: 0.1171 | G78: 0.1171 | I78: 0.1171 | K78: 0.1171 | M78: 0.1171 | O78: 0.1171 | Q78: 0.1171 | S78: 0.1171 | U78: 0.1171 | W78: 0.1171 | Y78: 0.1171 | AA78: 0.1171 | AC78: 0.1171 | AE78: 0.0681 | AG78: 0.0681 | AI78: 0.1171
B79: IVA aplicado al carburante (%)(€/litro) | D79: 21 | E79: =ROUND((D79/100)*(E77-E78)/(1+D79/100),4) -> 0.2378 | F79: 21 | G79: =ROUND((F79/100)*(G77-G78)/(1+F79/100),4) -> 0.2378 | H79: 21 | I79: =ROUND((H79/100)*(I77-I78)/(1+H79/100),4) -> 0.2378 | J79: 21 | K79: =ROUND((J79/100)*(K77-K78)/(1+J79/100),4) -> 0.2378 | L79: 21 | M79: =ROUND((L79/100)*(M77-M78)/(1+L79/100),4) -> 0.2378 | N79: 21 | O79: =ROUND((N79/100)*(O77-O78)/(1+N79/100),4) -> 0.2378 | P79: 21 | Q79: =ROUND((P79/100)*(Q77-Q78)/(1+P79/100),4) -> 0.2378 | R79: 21 | S79: =ROUND((R79/100)*(S77-S78)/(1+R79/100),4) -> 0.2378 | T79: 21 | U79: =ROUND((T79/100)*(U77-U78)/(1+T79/100),4) -> 0.2378 | V79: 21 | W79: =ROUND((V79/100)*(W77-W78)/(1+V79/100),4) -> 0.2378 | X79: 21 | Y79: =ROUND((X79/100)*(Y77-Y78)/(1+X79/100),4) -> 0.2378 | Z79: 21 | AA79: =ROUND((Z79/100)*(AA77-AA78)/(1+Z79/100),4) -> 0.2378 | AB79: 21 | AC79: =ROUND((AB79/100)*(AC77-AC78)/(1+AB79/100),4) -> 0.2378 | AD79: 21 | AE79: =ROUND((AD79/100)*(AE77-AE78)/(1+AD79/100),4) -> 0.2463 | AF79: 21 | AG79: =ROUND((AF79/100)*(AG77-AG78)/(1+AF79/100),4) -> 0.2463 | AH79: 21 | AI79: =ROUND((AH79/100)*(AI77-AI78)/(1+AH79/100),4) -> 0.2378
B80: Precio carburante sin IVA (€/litro) | E80: =ROUND((E77-E78)/(1+D79/100),4) -> 1.1322 | G80: =ROUND((G77-G78)/(1+F79/100),4) -> 1.1322 | I80: =ROUND((I77-I78)/(1+H79/100),4) -> 1.1322 | K80: =ROUND((K77-K78)/(1+J79/100),4) -> 1.1322 | M80: =ROUND((M77-M78)/(1+L79/100),4) -> 1.1322 | O80: =ROUND((O77-O78)/(1+N79/100),4) -> 1.1322 | Q80: =ROUND((Q77-Q78)/(1+P79/100),4) -> 1.1322 | S80: =ROUND((S77-S78)/(1+R79/100),4) -> 1.1322 | U80: =ROUND((U77-U78)/(1+T79/100),4) -> 1.1322 | W80: =ROUND((W77-W78)/(1+V79/100),4) -> 1.1322 | Y80: =ROUND((Y77-Y78)/(1+X79/100),4) -> 1.1322 | AA80: =ROUND((AA77-AA78)/(1+Z79/100),4) -> 1.1322 | AC80: =ROUND((AC77-AC78)/(1+AB79/100),4) -> 1.1322 | AE80: =ROUND((AE77-AE78)/(1+AD79/100),4) -> 1.1727 | AG80: =ROUND((AG77-AG78)/(1+AF79/100),4) -> 1.1727 | AI80: =ROUND((AI77-AI78)/(1+AH79/100),4) -> 1.1322
B81: GASTO TOTAL ANUAL EN CARBURANTE DEL VEHÍCULO (€, SIN IVA) | E81: =ROUND(E9/100*E12*E80,0) -> 59441 | G81: =ROUND(G9/100*G12*G80,0) -> 47552 | I81: =ROUND(I9/100*I12*I80,0) -> 39627 | K81: =ROUND(K9/100*K12*K80,0) -> 39627 | M81: =ROUND(M9/100*M12*M80,0) -> 26154 | O81: =ROUND(O9/100*O12*O80,0) -> 25475 | Q81: =ROUND(Q9/100*Q12*Q80,0) -> 41014 | S81: =ROUND(S9/100*S12*S80,0) -> 39061 | U81: =ROUND(U9/100*U12*U80,0) -> 39061 | W81: =ROUND(W9/100*W12*W80,0) -> 47552 | Y81: =ROUND(Y9/100*Y12*Y80,0) -> 19814 | AA81: =ROUND(AA9/100*AA12*AA80,0) -> 47552 | AC81: =ROUND(AC9/100*AC12*AC80,0) -> 47552 | AE81: =ROUND(AE9/100*AE12*AE80,0) -> 6743 | AG81: =ROUND(AG9/100*AG12*AG80,0) -> 6743 | AI81: =ROUND(AI9/100*AI12*AI80,0) -> 47552
B82: Precio de compra de carburante | W82: 1.0654 | Y82: 1.0654 | AI82: 0
B83: Descuento (€/litro) | W83: 0 | Y83: 0 | AI83: 0
B84: IVA aplicado al carburante (%) | W84: 21 | Y84: 21 | AI84: 21
B85: IVA aplicado al carburante (€/litro) | W85: =(W84/100)*(W82-W83)/(1+W84/100) -> 0.18 | Y85: =(Y84/100)*(Y82-Y83)/(1+Y84/100) -> 0.18 | AI85: 0
B86: Precio carburante sin IVA (€/litro) | W86: =(W82-W83)/(1+W84/100) -> 0.8805 | Y86: =(Y82-Y83)/(1+Y84/100) -> 0.8805 | AI86: 0
B87: Consumo medio de los equipos (litros/hora) | W87: 4 | Y87: 3 | AI87: 0
B88: Horas anuales de utilización de los equipos | W88: 2000 | Y88: 2000 | AI88: 0
B89: GASTO TOTAL ANUAL EN CARBURANTE EQUIPOS | W89: =W86*W87*W88 -> 7044 | Y89: =Y86*Y87*Y88 -> 5283 | AI89: 0
B90: Número de neumáticos direccionables | E90: 2 | G90: 2 | I90: 2 | K90: 2 | M90: 2 | O90: 2 | Q90: 2 | S90: 2 | U90: 2 | W90: 2 | Y90: 2 | AA90: 2 | AC90: 2 | AE90: 2 | AG90: 2 | AI90: 2
B91: Número de neumáticos motrices | E91: 4 | G91: 4 | I91: 4 | K91: 4 | M91: 4 | O91: 4 | Q91: 4 | S91: 4 | U91: 4 | W91: 4 | Y91: 4 | AA91: 4 | AC91: 4 | AE91: 2 | AG91: 2 | AI91: 4
B92: Número de neumáticos arrastre | I92: 2 | K92: 2 | AI92: 0
B93: Número de neumáticos semirremolque o remolque | E93: 6 | G93: 6 | I93: 6 | K93: 6 | M93: 8 | Q93: 6 | S93: 6 | U93: 6 | W93: 6 | AA93: 6 | AC93: 6 | AI93: 6
B94: Precio sin IVA de un neumático direccionable (€) | E94: 718.84 | G94: 718.84 | I94: 718.84 | K94: 718.84 | M94: 718.84 | O94: 762.17 | Q94: 718.84 | S94: 718.84 | U94: 718.84 | W94: 718.84 | Y94: 762.17 | AA94: 718.84 | AC94: 718.84 | AE94: 209.22 | AG94: 209.22 | AI94: 718.84
B95: Precio sin IVA de un neumático motriz (€) | E95: 718.84 | G95: 718.84 | I95: 718.84 | K95: 718.84 | M95: 718.84 | O95: 762.17 | Q95: 718.84 | S95: 718.84 | U95: 718.84 | W95: 718.84 | Y95: 762.17 | AA95: 718.84 | AC95: 718.84 | AE95: 209.22 | AG95: 209.22 | AI95: 718.84
B96: Precio sin IVA de un neumático arrastre (€) | I96: 718.84 | K96: 718.84 | AI96: 718.84
B97: Precio sin IVA de un neumático remolque-semirremolque (€) | E97: 718.84 | G97: 718.84 | I97: 718.84 | K97: 718.84 | M97: 718.84 | Q97: 718.84 | S97: 718.84 | U97: 718.84 | W97: 718.84 | AA97: 718.84 | AC97: 718.84 | AI97: 718.84
B98: Duración media de un neumático direccionable (km) | E98: 150000 | G98: 150000 | I98: 150000 | K98: 150000 | M98: 50000 | O98: 125000 | Q98: 150000 | S98: 150000 | U98: 150000 | W98: 150000 | Y98: 125000 | AA98: 150000 | AC98: 150000 | AE98: 60000 | AG98: 60000 | AI98: 150000
B99: Duración media de un neumático motriz (km) | E99: 150000 | G99: 150000 | I99: 150000 | K99: 150000 | M99: 50000 | O99: 125000 | Q99: 150000 | S99: 150000 | U99: 150000 | W99: 150000 | Y99: 125000 | AA99: 150000 | AC99: 150000 | AE99: 60000 | AG99: 60000 | AI99: 150000
B100: Duración media de un neumático arrastre (km) | I100: 150000 | K100: 150000 | AI100: 150000
B101: Duración media de un neumático remolque-semirremolque (km) | E101: 150000 | G101: 150000 | I101: 150000 | K101: 150000 | M101: 50000 | Q101: 150000 | S101: 150000 | U101: 150000 | W101: 150000 | AA101: 150000 | AC101: 150000 | AI101: 150000
B102: GASTO TOTAL ANUAL EN NEUMATICOS (€, SIN IVA) | E102: =ROUND(IFERROR(E90*E94*E9/E98,0)+IFERROR(E91*E95*E9/E99,0)+IFERROR(E92*E96*E9/E100,0)+IFERROR(E93*E97*E9/E101,0),0) -> 8626.08 | G102: =ROUND(IFERROR(G90*G94*G9/G98,0)+IFERROR(G91*G95*G9/G99,0)+IFERROR(G92*G96*G9/G100,0)+IFERROR(G93*G97*G9/G101,0),0) -> 6900.86 | I102: =ROUND(IFERROR(I90*I94*I9/I98,0)+IFERROR(I91*I95*I9/I99,0)+IFERROR(I92*I96*I9/I100,0)+IFERROR(I93*I97*I9/I101,0),0) -> 6709.17 | K102: =ROUND(IFERROR(K90*K94*K9/K98,0)+IFERROR(K91*K95*K9/K99,0)+IFERROR(K92*K96*K9/K100,0)+IFERROR(K93*K97*K9/K101,0),0) -> 6709.17 | M102: =ROUND(IFERROR(M90*M94*M9/M98,0)+IFERROR(M91*M95*M9/M99,0)+IFERROR(M92*M96*M9/M100,0)+IFERROR(M93*M97*M9/M101,0),0) -> 12076.51 | O102: =ROUND(IFERROR(O90*O94*O9/O98,0)+IFERROR(O91*O95*O9/O99,0)+IFERROR(O92*O96*O9/O100,0)+IFERROR(O93*O97*O9/O101,0),0) -> 3292.57 | Q102: =ROUND(IFERROR(Q90*Q94*Q9/Q98,0)+IFERROR(Q91*Q95*Q9/Q99,0)+IFERROR(Q92*Q96*Q9/Q100,0)+IFERROR(Q93*Q97*Q9/Q101,0),0) -> 6038.26 | S102: =ROUND(IFERROR(S90*S94*S9/S98,0)+IFERROR(S91*S95*S9/S99,0)+IFERROR(S92*S96*S9/S100,0)+IFERROR(S93*S97*S9/S101,0),0) -> 5750.72 | U102: =ROUND(IFERROR(U90*U94*U9/U98,0)+IFERROR(U91*U95*U9/U99,0)+IFERROR(U92*U96*U9/U100,0)+IFERROR(U93*U97*U9/U101,0),0) -> 5750.72 | W102: =ROUND(IFERROR(W90*W94*W9/W98,0)+IFERROR(W91*W95*W9/W99,0)+IFERROR(W92*W96*W9/W100,0)+IFERROR(W93*W97*W9/W101,0),0) -> 6900.86 | Y102: =ROUND(IFERROR(Y90*Y94*Y9/Y98,0)+IFERROR(Y91*Y95*Y9/Y99,0)+IFERROR(Y92*Y96*Y9/Y100,0)+IFERROR(Y93*Y97*Y9/Y101,0),0) -> 2560.89 | AA102: =ROUND(IFERROR(AA90*AA94*AA9/AA98,0)+IFERROR(AA91*AA95*AA9/AA99,0)+IFERROR(AA92*AA96*AA9/AA100,0)+IFERROR(AA93*AA97*AA9/AA101,0),0) -> 6900.86 | AC102: =ROUND(IFERROR(AC90*AC94*AC9/AC98,0)+IFERROR(AC91*AC95*AC9/AC99,0)+IFERROR(AC92*AC96*AC9/AC100,0)+IFERROR(AC93*AC97*AC9/AC101,0),0) -> 6900.86 | AE102: =ROUND(IFERROR(AE90*AE94*AE9/AE98,0)+IFERROR(AE91*AE95*AE9/AE99,0)+IFERROR(AE92*AE96*AE9/AE100,0)+IFERROR(AE93*AE97*AE9/AE101,0),0) -> 697.4 | AG102: =ROUND(IFERROR(AG90*AG94*AG9/AG98,0)+IFERROR(AG91*AG95*AG9/AG99,0)+IFERROR(AG92*AG96*AG9/AG100,0)+IFERROR(AG93*AG97*AG9/AG101,0),0) -> 697.4 | AI102: =ROUND(IFERROR(AI90*AI94*AI9/AI98,0)+IFERROR(AI91*AI95*AI9/AI99,0)+IFERROR(AI92*AI96*AI9/AI100,0)+IFERROR(AI93*AI97*AI9/AI101,0),0) -> 6900.86
B103: Coste de mantenimiento por km, sin IVA (€/km) | E103: 0.0187 | G103: 0.0187 | I103: 0.0224 | K103: 0.0224 | M103: 0.0757 | O103: 0.0221 | Q103: 0.0605 | S103: 0.0605 | U103: 0.0605 | W103: 0.0221 | Y103: 0.0295 | AA103: 0.0187 | AC103: 0.0187 | AE103: 0.0106 | AG103: 0.0106 | AI103: 0.0187
B104: GASTO ANUAL EN MANTENIMIENTO, SIN IVA (€) | E104: =E103*E9 -> 2805 | G104: =G103*G9 -> 2244 | I104: =I103*I9 -> 2240 | K104: =K103*K9 -> 2240 | M104: =M103*M9 -> 4542 | O104: =O103*O9 -> 1989 | Q104: =Q103*Q9 -> 6353 | S104: =S103*S9 -> 6050 | U104: =U103*U9 -> 6050 | W104: =W103*W9 -> 2652 | Y104: =Y103*Y9 -> 2065 | AA104: =AA103*AA9 -> 2244 | AC104: =AC103*AC9 -> 2244 | AE104: =AE103*AE9 -> 530 | AG104: =AG103*AG9 -> 530 | AI104: =AI103*AI9 -> 2244
B105: Coste de reparaciones por km, sin IVA (€/km) | E105: 0.0369 | G105: 0.0369 | I105: 0.0369 | K105: 0.0369 | M105: 0.0474 | O105: 0.0295 | Q105: 0.0465 | S105: 0.0465 | U105: 0.0465 | W105: 0.0465 | Y105: 0.0369 | AA105: 0.0369 | AC105: 0.0369 | AE105: 0.0189 | AG105: 0.0189 | AI105: 0.0369
B106: GASTO ANUAL EN REPARACIONES, SIN IVA (€) | E106: =E105*E9 -> 5535 | G106: =G105*G9 -> 4428 | I106: =I105*I9 -> 3690 | K106: =K105*K9 -> 3690 | M106: =M105*M9 -> 2844 | O106: =O105*O9 -> 2655 | Q106: =Q105*Q9 -> 4883 | S106: =S105*S9 -> 4650 | U106: =U105*U9 -> 4650 | W106: =W105*W9 -> 5580 | Y106: =Y105*Y9 -> 2583 | AA106: =AA105*AA9 -> 4428 | AC106: =AC105*AC9 -> 4428 | AE106: =AE105*AE9 -> 945 | AG106: =AG105*AG9 -> 945 | AI106: =AI105*AI9 -> 4428
B107: GASTO ANUAL EN PEAJES, SIN IVA (€) | E107: 18588.7 | G107: 2313.26 | I107: 1927.72 | K107: 1927.72 | M107: 0 | O107: 1487.1 | Q107: 10120.52 | S107: 9638.59 | U107: 9638.59 | W107: 2313.26 | Y107: 1156.64 | AA107: 2313.26 | AC107: 2313.26 | AE107: 0 | AG107: 0 | AI107: 2313.26
B108: COSTES VARIABLES | E108: =ROUND(E81+E89+E102+E104+E106+E107+E114,0) -> 97573.5 | G108: =ROUND(G81+G89+G102+G104+G106+G107+G114,0) -> 65500.3 | I108: =ROUND(I81+I89+I102+I104+I106+I107+I114,0) -> 55912.37 | K108: =ROUND(K81+K89+K102+K104+K106+K107+K114,0) -> 55912.37 | M108: =ROUND(M81+M89+M102+M104+M106+M107+M114,0) -> 46750.71 | O108: =ROUND(O81+O89+O102+O104+O106+O107+O114,0) -> 36003.41 | Q108: =ROUND(Q81+Q89+Q102+Q104+Q106+Q107+Q114,0) -> 70187.42 | S108: =ROUND(S81+S89+S102+S104+S106+S107+S114,0) -> 66844.25 | U108: =ROUND(U81+U89+U102+U104+U106+U107+U114,0) -> 66844.25 | W108: =ROUND(W81+W89+W102+W104+W106+W107+W114,0) -> 74104.3 | Y108: =ROUND(Y81+Y89+Y102+Y104+Y106+Y107+Y114,0) -> 34321.77 | AA108: =ROUND(AA81+AA89+AA102+AA104+AA106+AA107+AA114,0) -> 65500.3 | AC108: =ROUND(AC81+AC89+AC102+AC104+AC106+AC107+AC114,0) -> 65500.3 | AE108: =ROUND(AE81+AE89+AE102+AE104+AE106+AE107+AE114,0) -> 9197.73 | AG108: =ROUND(AG81+AG89+AG102+AG104+AG106+AG107+AG114,0) -> 9197.73 | AI108: =ROUND(AI81+AI89+AI102+AI104+AI106+AI107+AI114,0) -> 65500.3
B109: % Costes anuales de gestión, administración y comercialización, repercutibles a este vehículo | D109: 6.5 | E109: =ROUND((E50+E57+E76+E108)*(D109/100),0) -> 13213.87 | F109: 6.5 | G109: =ROUND((G50+G57+G76+G108)*(F109/100),0) -> 9568.81 | H109: 6.5 | I109: =ROUND((I50+I57+I76+I108)*(H109/100),0) -> 8415.75 | J109: 6.5 | K109: =ROUND((K50+K57+K76+K108)*(J109/100),0) -> 8415.75 | L109: 6.5 | M109: =ROUND((M50+M57+M76+M108)*(L109/100),0) -> 7287.41 | N109: 6.5 | O109: =ROUND((O50+O57+O76+O108)*(N109/100),0) -> 6317.25 | P109: 6.5 | Q109: =ROUND((Q50+Q57+Q76+Q108)*(P109/100),0) -> 10695.96 | R109: 6.5 | S109: =ROUND((S50+S57+S76+S108)*(R109/100),0) -> 10443.22 | T109: 6.5 | U109: =ROUND((U50+U57+U76+U108)*(T109/100),0) -> 10443.22 | V109: 6.5 | W109: =ROUND((V109/100)*(W50+W57+W76+W108),0) -> 10372.4 | X109: 6.5 | Y109: =ROUND((X109/100)*(Y50+Y57+Y76+Y108),0) -> 6279.04 | Z109: 6.5 | AA109: =ROUND((Z109/100)*(AA50+AA57+AA76+AA108),0) -> 9425.95 | AB109: 6.5 | AC109: =ROUND((AB109/100)*(AC50+AC57+AC76+AC108),0) -> 9425.95 | AD109: 6.5 | AE109: =ROUND((AD109/100)*(AE50+AE57+AE76+AE108),0) -> 3583.98 | AF109: 6.5 | AG109: =ROUND((AF109/100)*(AG50+AG57+AG76+AG108),0) -> 3583.98 | AH109: 6.5 | AI109: =ROUND((AH109/100)*(AI50+AI57+AI76+AI108),0) -> 9568.81
B112: COSTES INDIRECTOS | E112: =ROUND((E50+E57+E76+E108)*(D109/100),0) -> 13213.87 | G112: =ROUND((G50+G57+G76+G108)*(F109/100),0) -> 9568.81 | I112: =ROUND((I50+I57+I76+I108)*(H109/100),0) -> 8415.75 | K112: =ROUND((K50+K57+K76+K108)*(J109/100),0) -> 8415.75 | M112: =ROUND((M50+M57+M76+M108)*(L109/100),0) -> 7287.41 | O112: =ROUND((O50+O57+O76+O108)*(N109/100),0) -> 6317.25 | Q112: =ROUND((Q50+Q57+Q76+Q108)*(P109/100),0) -> 10695.96 | S112: =ROUND((S50+S57+S76+S108)*(R109/100),0) -> 10443.22 | U112: =ROUND((U50+U57+U76+U108)*(T109/100),0) -> 10443.22 | W112: =ROUND((V109/100)*(W50+W57+W76+W108),0) -> 10372.4 | Y112: =ROUND((X109/100)*(Y50+Y57+Y76+Y108),0) -> 6279.04 | AA112: =ROUND((Z109/100)*(AA50+AA57+AA76+AA108),0) -> 9425.95 | AC112: =ROUND((AB109/100)*(AC50+AC57+AC76+AC108),0) -> 9425.95 | AE112: =ROUND((AD109/100)*(AE50+AE57+AE76+AE108),0) -> 3583.98 | AG112: =ROUND((AF109/100)*(AG50+AG57+AG76+AG108),0) -> 3583.98 | AI112: =ROUND((AH109/100)*(AI50+AI57+AI76+AI108),0) -> 9568.81
B113: COSTES TOTALES | E113: =(E50+E57+E76+E108)+E112 -> 241236.42 | G113: =(G50+G57+G76+G108)+G112 -> 153670.62 | I113: =(I50+I57+I76+I108)+I112 -> 134962.96 | K113: =(K50+K57+K76+K108)+K112 -> 134962.96 | M113: =(M50+M57+M76+M108)+M112 -> 117054.59 | O113: =(O50+O57+O76+O108)+O112 -> 100459.42 | Q113: =(Q50+Q57+Q76+Q108)+Q112 -> 171694.08 | S113: =(S50+S57+S76+S108)+S112 -> 167394.64 | U113: =(U50+U57+U76+U108)+U112 -> 167601.64 | W113: =(W50+W57+W76+W108)+W112 -> 166481.23 | Y113: =(Y50+Y57+Y76+Y108)+Y112 -> 100545.06 | AA113: =(AA50+AA57+AA76+AA108)+AA112 -> 151493.87 | AC113: =(AC50+AC57+AC76+AC108)+AC112 -> 151493.87 | AE113: =(AE50+AE57+AE76+AE108)+AE112 -> 56318.16 | AG113: =(AG50+AG57+AG76+AG108)+AG112 -> 56294.16 | AI113: =(AI50+AI57+AI76+AI108)+AI112 -> 153421.62
B114: GASTO ANUAL POR CONSUMO DE DISOLUCION DE UREA (€, sin IVA) | E114: 2577.72 | G114: 2062.18 | I114: 1718.48 | K114: 1718.48 | M114: 1134.2 | O114: 1104.74 | Q114: 1778.64 | S114: 1693.94 | U114: 1693.94 | W114: 2062.18 | Y114: 859.24 | AA114: 2062.18 | AC114: 2062.18 | AE114: 282.33 | AG114: 282.33 | AI114: 2062.18
B115: Coste anual por disolucion de urea por kilometro(€/km, sin IVA) | E115: 0.0172 | G115: 0.0172 | I115: 0.0172 | K115: 0.0172 | M115: 0.0189 | O115: 0.0123 | Q115: 0.0169 | S115: 0.0169 | U115: 0.0169 | W115: 0.0172 | Y115: 0.0123 | AA115: 0.0172 | AC115: 0.0172 | AE115: 0.0056 | AG115: 0.0056 | AI115: 0.0172
B121: Valor de adquisición del vehículo sin IVA y sin neumáticos (€) | E121: =E21-E102 -> 106861 | G121: =G21-G102 -> 108572.943 | I121: =I21-I102 -> 108762.943 | K121: =K21-K102 -> 108762.943 | M121: =M21-M102 -> 103437.943 | O121: =O21-O102 -> 68103.468 | Q121: =Q21-Q102 -> 109427.943 | S121: 109713.943 | U121: 109713.943 | W121: 108572.943 | Y121: 68829.468 | AA121: 108572.943 | AC121: 108572.943 | AE121: 23465.125 | AG121: 23465.125 | AI121: 108572.943
B122: Valor de adquisición del remolque-semirremolque sin IVA y sin neumáticos (€) | E122: =E37-(E93*E97) -> 33602.04 | G122: =G37-(G93*G97) -> 33602.04 | I122: =I37-(I93*I97) -> 25429.04 | K122: =K37-(K93*K97) -> 25429.04 | M122: =M37-(M93*M97) -> 27923.72 | O122: =O37-(O93*O97) -> 0 | Q122: =Q37-(Q93*Q97) -> 89000.04 | S122: =S37-(S93*S97) -> 89000.04 | U122: =U37-(U93*U97) -> 89000.04 | W122: =W37-(W93*W97) -> 61004.04 | Y122: =Y37-(Y93*Y97) -> 0 | AA122: =AA37-(AA93*AA97) -> 36678.04 | AC122: =AC37-(AC93*AC97) -> 36678.04 | AE122: =AE37-(AE93*AE97) -> 0 | AG122: =AG37-(AG93*AG97) -> 0 | AI122: =AI37-(AI93*AI97) -> 33602.04
B123: Dietas y plus de actividad anuales del conductor (€) | E123: =E54+E56 -> 30650 | G123: =G54+G56 -> 16122 | I123: =I54+I56 -> 13904 | K123: =K54+K56 -> 13904 | M123: =M54+M56 -> 6910.8 | O123: =O54+O56 -> 10296.63 | Q123: =Q54+Q56 -> 17153.5 | S123: =S54+S56 -> 16694 | U123: =U54+U56 -> 16694 | W123: =W54+W56 -> 15774 | Y123: =Y54+Y56 -> 7038.25 | AA123: =AA54+AA56 -> 14502 | AC123: =AC54+AC56 -> 14502 | AE123: =AE54+AE56 -> 5759 | AG123: =AG54+AG56 -> 5759 | AI123: =AI54+AI56 -> 16122
B124: Gasto anual en mantenimiento, sin IVA (€) | E124: =E104+E106 -> 8100 | G124: =G104+G106 -> 6480 | I124: =I104+I106 -> 5760 | K124: =K104+K106 -> 5760 | M124: =M104+M106 -> 7164 | O124: =O104+O106 -> 4509 | Q124: =Q104+Q106 -> 10899 | S124: =S104+S106 -> 10380 | U124: =U104+U106 -> 10380 | W124: =W104+W106 -> 7992 | Y124: =Y104+Y106 -> 4508 | AA124: =AA104+AA106 -> 6480 | AC124: =AC104+AC106 -> 6480 | AE124: =AE104+AE106 -> 1430 | AG124: =AG104+AG106 -> 1430 | AI124: =AI104+AI106 -> 6480
B125: Costo neumáticos por km | E125: =IFERROR((E90*E94/E98),0)+IFERROR((E91*E95/E99),0)+IFERROR((E92*E96/E100),0)+IFERROR((E93*E97/E101),0) -> 0.0570528 | G125: =IFERROR((G90*G94/G98),0)+IFERROR((G91*G95/G99),0)+IFERROR((G92*G96/G100),0)+IFERROR((G93*G97/G101),0) -> 0.0570528 | I125: =IFERROR((I90*I94/I98),0)+IFERROR((I91*I95/I99),0)+IFERROR((I92*I96/I100),0)+IFERROR((I93*I97/I101),0) -> 0.0665616 | K125: =IFERROR((K90*K94/K98),0)+IFERROR((K91*K95/K99),0)+IFERROR((K92*K96/K100),0)+IFERROR((K93*K97/K101),0) -> 0.0665616 | M125: =IFERROR((M90*M94/M98),0)+IFERROR((M91*M95/M99),0)+IFERROR((M92*M96/M100),0)+IFERROR((M93*M97/M101),0) -> 0.1996848 | O125: =IFERROR((O90*O94/O98),0)+IFERROR((O91*O95/O99),0)+IFERROR((O92*O96/O100),0)+IFERROR((O93*O97/O101),0) -> 0.0362952 | Q125: =IFERROR((Q90*Q94/Q98),0)+IFERROR((Q91*Q95/Q99),0)+IFERROR((Q92*Q96/Q100),0)+IFERROR((Q93*Q97/Q101),0) -> 0.0570528 | S125: =IFERROR((S90*S94/S98),0)+IFERROR((S91*S95/S99),0)+IFERROR((S92*S96/S100),0)+IFERROR((S93*S97/S101),0) -> 0.0570528 | U125: =IFERROR((U90*U94/U98),0)+IFERROR((U91*U95/U99),0)+IFERROR((U92*U96/U100),0)+IFERROR((U93*U97/U101),0) -> 0.0570528 | W125: =IFERROR((W90*W94/W98),0)+IFERROR((W91*W95/W99),0)+IFERROR((W92*W96/W100),0)+IFERROR((W93*W97/W101),0) -> 0.0570528 | Y125: =IFERROR((Y90*Y94/Y98),0)+IFERROR((Y91*Y95/Y99),0)+IFERROR((Y92*Y96/Y100),0)+IFERROR((Y93*Y97/Y101),0) -> 0.0362952 | AA125: =IFERROR((AA90*AA94/AA98),0)+IFERROR((AA91*AA95/AA99),0)+IFERROR((AA92*AA96/AA100),0)+IFERROR((AA93*AA97/AA101),0) -> 0.0570528 | AC125: =IFERROR((AC90*AC94/AC98),0)+IFERROR((AC91*AC95/AC99),0)+IFERROR((AC92*AC96/AC100),0)+IFERROR((AC93*AC97/AC101),0) -> 0.0570528 | AE125: =IFERROR((AE90*AE94/AE98),0)+IFERROR((AE91*AE95/AE99),0)+IFERROR((AE92*AE96/AE100),0)+IFERROR((AE93*AE97/AE101),0) -> 0.013838 | AG125: =IFERROR((AG90*AG94/AG98),0)+IFERROR((AG91*AG95/AG99),0)+IFERROR((AG92*AG96/AG100),0)+IFERROR((AG93*AG97/AG101),0) -> 0.013838 | AI125: =IFERROR((AI90*AI94/AI98),0)+IFERROR((AI91*AI95/AI99),0)+IFERROR((AI92*AI96/AI100),0)+IFERROR((AI93*AI97/AI101),0) -> 0.0570528

Sheet Tipo Vehículo
C6: Seleccionar tipo de vehículo
C10: Tipo de vehículo: | E10: =VLOOKUP(F10,T!A2:B17,2,0) -> T1 | F10: Vehículo articulado de carga general de larga distancia
C12: ¿Desea comenzar la simulación con los datos estadísticos añadidos a los formularios de cálculo?

Sheet Cálculo Simplificado
C6: 1. Cálculo simplificado
C9: Introduzca un resumen simplificado de los parámetros de la simulación | J9: Datos estadísticos | K9: =DE!$AJ$2 -> 19/06/2025
I10: =J10 -> 0.0561 | J10: =IF(HLOOKUP('Tipo Vehículo'!$E$10,DE!$D$1:$AT$285,3,0)="","",HLOOKUP('Tipo Vehículo'!$E$10,DE!$D$1:$AT$285,3,0)) -> 0.0561
C11: Kilómetros recorridos anualmente | J11: =IF(HLOOKUP('Tipo Vehículo'!$E$10,DE!$D$1:$SS$300,9,0)="","",HLOOKUP('Tipo Vehículo'!$E$10,DE!$D$1:$AI$300,9,0)) -> 150000
C13: Horas trabajadas al año | J13: =IF(HLOOKUP('Tipo Vehículo'!$E$10,DE!$D$1:$AI$300,13,0)="","",HLOOKUP('Tipo Vehículo'!$E$10,DE!$D$1:$AI$300,13,0)) -> 2000
C15: Valor de adquisición del vehículo sin IVA y sin neumáticos (€) | J15: =IF(HLOOKUP('Tipo Vehículo'!$E$10,DE!$D$1:$AI$300,121,0)="","",HLOOKUP('Tipo Vehículo'!$E$10,DE!$D$1:$AI$300,121,0)) -> 106861
C17: Vida útil del vehículo (años) | J17: =IF(HLOOKUP('Tipo Vehículo'!$E$10,DE!$D$1:$AI$300,17,0)="","",HLOOKUP('Tipo Vehículo'!$E$10,DE!$D$1:$AI$300,22,0)) -> 5
C19: Valor residual sin IVA del vehículo (€) | J19: =IF(HLOOKUP('Tipo Vehículo'!$E$10,DE!$D$1:$AI$300,23,0)="","",HLOOKUP('Tipo Vehículo'!$E$10,DE!$D$1:$AI$300,23,0)) -> 19236
C21: Valor de adquisición del remolque-semirremolque sin IVA y sin neumáticos (€) | J21: =IF(HLOOKUP('Tipo Vehículo'!$E$10,DE!$D$1:$AI$300,122,0)="","",HLOOKUP('Tipo Vehículo'!$E$10,DE!$D$1:$AI$300,122,0)) -> 33602.04
C23: Vida útil del remolque-semirremolque (años) | J23: =IF(HLOOKUP('Tipo Vehículo'!$E$10,DE!$D$1:$AI$300,38,0)="","",HLOOKUP('Tipo Vehículo'!$E$10,DE!$D$1:$AI$300,38,0)) -> 7
C25: Valor residual del remolque-semirremolque sin IVA (€) | J25: =IF(HLOOKUP('Tipo Vehículo'!$E$10,DE!$D$1:$AI$300,39,0)="","",HLOOKUP('Tipo Vehículo'!$E$10,DE!$D$1:$AI$300,39,0)) -> 3987
C27: Leasing y alquiler (vehículo de tracción, carrozado, semirremolque, equipos auxiliares) | J27: =IF(HLOOKUP('Tipo Vehículo'!$E$10,DE!$D$1:$AI$300,18,0)="","",HLOOKUP('Tipo Vehículo'!$E$10,DE!$D$1:$AI$300,18,0)) -> 0
C29: Coste total anual del conductor, incluidos costes de empresa, Seg. Soc y otros (€) | J29: =IF(HLOOKUP('Tipo Vehículo'!$E$10,DE!$D$1:$AI$300,51,0)="","",HLOOKUP('Tipo Vehículo'!$E$10,DE!$D$1:$AI$300,51,0)) -> 37649.7
C31: Dietas y plus de actividad anuales del conductor (€) | J31: =IF(HLOOKUP('Tipo Vehículo'!$E$10,DE!$D$1:$AI$300,123,0)="","",HLOOKUP('Tipo Vehículo'!$E$10,DE!$D$1:$AI$300,123,0)) -> 30650
C33: Coste total anual de los seguros (€) | J33: =IF(HLOOKUP('Tipo Vehículo'!$E$10,DE!$D$1:$AI$300,66,0)="","",HLOOKUP('Tipo Vehículo'!$E$10,DE!$D$1:$AI$300,66,0)) -> 6965.05
C35: Coste fiscal total anual (€) | J35: =IF(HLOOKUP('Tipo Vehículo'!$E$10,DE!$D$1:$AI$300,75,0)="","",HLOOKUP('Tipo Vehículo'!$E$10,DE!$D$1:$AI$300,75,0)) -> 929.67
C37: Precio carburante sin IVA (€/litro) | J37: =IF(HLOOKUP('Tipo Vehículo'!$E$10,DE!$D$1:$AI$300,80,0)="","",HLOOKUP('Tipo Vehículo'!$E$10,DE!$D$1:$AI$300,80,0)) -> 1.6588
C39: GASTO ANUAL POR CONSUMO DE DISOLUCIÓN DE UREA (€, sin IVA) | J39: =IF(HLOOKUP('Tipo Vehículo'!$E$10,DE!$D$1:$AI$300,114,0)="","",HLOOKUP('Tipo Vehículo'!$E$10,DE!$D$1:$AI$300,114,0)) -> 2500.16
C41: Gasto total anual en carburante, sin IVA (€) | J41: =IF(HLOOKUP('Tipo Vehículo'!$E$10,DE!$D$1:$AI$300,81,0)="",0,HLOOKUP('Tipo Vehículo'!$E$10,DE!$D$1:$AI$300,81,0))+IF(HLOOKUP('Tipo Vehículo'!$E$10,DE!$D$1:$AI$300,89,0)="",0) -> 87087
C43: Gasto total anual en neumáticos (€) | J43: =IF(HLOOKUP('Tipo Vehículo'!$E$10,DE!$D$1:$AI$300,102,0)="","",HLOOKUP('Tipo Vehículo'!$E$10,DE!$D$1:$AI$300,102,0)) -> 8558
C45: Gasto anual en mantenimiento y reparaciones, sin IVA (€) | J45: =IF(HLOOKUP('Tipo Vehículo'!$E$10,DE!$D$1:$AI$300,104,0)="","",HLOOKUP('Tipo Vehículo'!$E$10,DE!$D$1:$AI$300,104,0))+IF(HLOOKUP('Tipo Vehículo'!$E$10,DE!$D$1:$AI$300,106,0)="","",HLOOKUP('Tipo Vehículo'!$E$10,DE!$D$1:$AI$300,106,0)) -> 8100
C47: Coste anual en peajes, sin IVA (€) | J47: =IF(HLOOKUP('Tipo Vehículo'!$E$10,DE!$D$1:$AI$300,107,0)="","",HLOOKUP('Tipo Vehículo'!$E$10,DE!$D$1:$AI$300,107,0)) -> 18260.02
C49: Total costes anuales indirectos repercutibles a este vehículo (€) | J49: =IF(HLOOKUP('Tipo Vehículo'!$E$10,DE!$D$1:$AI$300,112,0)="","",HLOOKUP('Tipo Vehículo'!$E$10,DE!$D$1:$AI$300,112,0)) -> 14723
C52: (*) Los campos marcados con asterisco se recalcularán automaticamente al cambiar los kilómetros.

Sheet Resultados
C6: Resultados
C9: ESTRUCTURA DE COSTES ANUALES | E9: Usuario | H9: Datos estadísticos | I9: =DE!$AJ$2 -> 19/06/2025
E10: Euros | F10: % | H10: Euros | I10: %
C11: Amortización y gastos financieros y leasing | D11: A | E11: =ROUND(('Cálculo Simplificado'!I15-'Cálculo Simplificado'!I19)*(1/'Cálculo Simplificado'!I17)+('Cálculo Simplificado'!I15-'Cálculo Simplificado'!I19)*(-(1/'Cálculo Simplificado'!I17)+'Cálculo Simplificado'!I$10/(1-POWER(1+'Cálculo Simplificado'!I$10,-'Cálculo Simplificado'!I17)))+IFERROR(('Cálculo Simplificado'!I21-'Cálculo Simplificado'!I25)*(1/'Cálculo Simplificado'!I23)+('Cálculo Simplificado'!I21-'Cálculo Simplificado'!I25)*(-(1/'Cálculo Simplificado'!I23)+'Cálculo Simplificado'!I$10/(1-POWER(1+'Cálculo Simplificado'!I$10,-'Cálculo Simplificado'!I23))),0)+'Cálculo Simplificado'!I27 + IF(HLOOKUP('Tipo Vehículo'!$E$10,DE!$D$1:$AI$300,17,0)="","",HLOOKUP('Tipo Vehículo'!$E$10,DE!$D$1:$AI$300,32,0))+IFERROR(IF(HLOOKUP('Tipo Vehículo'!$E$10,DE!$D$1:$AI$300,17,0)="","",HLOOKUP('Tipo Vehículo'!$E$10,DE!$D$1:$AI$300,33,0)),0),0) ->  | F11: =IFERROR(E11*F$16/E$16,0) -> 0 | G11: A | H11: =ROUND(('Cálculo Simplificado'!J15-'Cálculo Simplificado'!J19)*(1/'Cálculo Simplificado'!J17)+('Cálculo Simplificado'!J15-'Cálculo Simplificado'!J19)*(-(1/'Cálculo Simplificado'!J17)+'Cálculo Simplificado'!J$10/(1-POWER(1+'Cálculo Simplificado'!J$10,-'Cálculo Simplificado'!J17)))+IFERROR(('Cálculo Simplificado'!J21-'Cálculo Simplificado'!J25)*(1/'Cálculo Simplificado'!J23)+('Cálculo Simplificado'!J21-'Cálculo Simplificado'!J25)*(-(1/'Cálculo Simplificado'!J23)+'Cálculo Simplificado'!J$10/(1-POWER(1+'Cálculo Simplificado'!J$10,-'Cálculo Simplificado'!J23))),0)+'Cálculo Simplificado'!J27 + IF(HLOOKUP('Tipo Vehículo'!$E$10,DE!$D$1:$AI$300,17,0)="","",HLOOKUP('Tipo Vehículo'!$E$10,DE!$D$1:$AI$300,32,0))+IFERROR(IF(HLOOKUP('Tipo Vehículo'!$E$10,DE!$D$1:$AI$300,17,0)="","",HLOOKUP('Tipo Vehículo'!$E$10,DE!$D$1:$AI$300,33,0)),0),0) -> 25813 | I11: =IFERROR(H11*I$16/H$16,0) -> 10.70031007
C12: Personal | D12: B | E12: =ROUND('Cálculo Simplificado'!I29+'Cálculo Simplificado'!I31,0) -> 0 | F12: =IFERROR(E12*F$16/E$16,0) -> 0 | G12: B | H12: =ROUND('Cálculo Simplificado'!J29+'Cálculo Simplificado'!J31,0) -> 68300 | I12: =IFERROR(H12*I$16/H$16,0) -> 28.31252384
C13: Seguros, costes fiscales, gestión y comercialización | D13: C | E13: =ROUND(IFERROR('Cálculo Simplificado'!I33+'Cálculo Simplificado'!I35+'Cálculo Simplificado'!I49,0),0) -> 0 | F13: =IFERROR(E13*F$16/E$16,0) -> 0 | G13: C | H13: =ROUND(IFERROR('Cálculo Simplificado'!J33+'Cálculo Simplificado'!J35+'Cálculo Simplificado'!J49,0),0) -> 22618 | I13: =IFERROR(H13*I$16/H$16,0) -> 9.37588088
C14: Carburante, neumáticos, reparaciones, mantenimiento y peajes | D14: D | E14: =ROUND(IFERROR('Cálculo Simplificado'!I39+'Cálculo Simplificado'!I41+'Cálculo Simplificado'!I43+'Cálculo Simplificado'!I45+'Cálculo Simplificado'!I47,0),0) -> 0 | F14: =IFERROR(E14*F$16/E$16,0) -> 0 | G14: D | H14: =ROUND(IFERROR('Cálculo Simplificado'!J39+'Cálculo Simplificado'!J41+'Cálculo Simplificado'!J43+'Cálculo Simplificado'!J45+'Cálculo Simplificado'!J47,0),0) -> 124505 | I14: =IFERROR(H14*I$16/H$16,0) -> 51.61128521
C16: COSTES TOTALES | E16: =ROUND(SUM(E11:E14),0) ->  | F16: 100 | H16: =ROUND(SUM(H11:H14),0) -> 241236 | I16: 100
C36: COSTES POR TIEMPO-COSTES POR DISTANCIA | E36: Usuario | H36: Datos estadísticos | I36: =DE!$AJ$2 -> 19/06/2025
E38: Euros | F38: % | H38: Euros | I38: %
C40: Costes por tiempo | D40: A | E40: =ROUND(E11+E12+E13,0) ->  | F40: =IFERROR(E40*F$16/E$16,0) -> 0 | G40: A | H40: =ROUND(H11+H12+H13,0) -> 116731 | I40: =IFERROR(H40*I$16/H$16,0) -> 48.38871479
C41: Costes por distancia | D41: B | E41: =ROUND(E14,0) -> 0 | F41: =IFERROR(E41*F$16/E$16,0) -> 0 | G41: B | H41: =ROUND(H14,0) -> 124505 | I41: =IFERROR(H41*I$16/H$16,0) -> 51.61128521
C43: COSTES TOTALES | E43: =ROUND(SUM(E40:E41),0) ->  | F43: 100 | H43: =ROUND(SUM(H40:H41),0) -> 241236 | I43: 100
C59: COSTES MEDIOS | E59: Usuario | H59: Datos estadísticos | I59: =DE!$AJ$2 -> 19/06/2025
C61: Coste total medio (por km.) | E61: =IFERROR(E43/'Cálculo Simplificado'!I11,0) -> 0 | H61: =IFERROR(H43/'Cálculo Simplificado'!J11,0) -> 1.60824
C62: Coste total medio (por hora) | E62: =IFERROR(E43/'Cálculo Simplificado'!I13,0) -> 0 | H62: =IFERROR(H43/'Cálculo Simplificado'!J13,0) -> 120.618
C63: Coste por distancia | E63: =IFERROR(E41,0) -> 0 | H63: =IFERROR(H41,0) -> 124505
C64: Coste por distancia media (por km.) | E64: =IFERROR(E63/'Cálculo Simplificado'!I11,0) -> 0 | H64: =IFERROR(H63/'Cálculo Simplificado'!J11,0) -> 0.8300333333
C65: Coste por tiempo | E65: =IFERROR(E40,0) -> 0 | H65: =IFERROR(H40,0) -> 116731
C66: Coste por tiempo medio (por hora) | E66: =IFERROR(E65/'Cálculo Simplificado'!I13,0) -> 0 | H66: =IFERROR(H65/'Cálculo Simplificado'!J13,0) -> 58.3655
C67: Costes totales por viajero-kilómetro | E67: =IFERROR(E43/'Cálculo Simplificado'!I11/'Cálculo Simplificado'!I15,0) -> 0 | H67: =IFERROR(H43/'Cálculo Simplificado'!J11/'Cálculo Simplificado'!J15,0) -> 1.504983109e-05

Sheet Coste Servicio
C6: Coste de un servicio
C9: Coste de un servicio
C11: Denominación del servicio
C13: Kilómetros recorridos en este servicio (km) | H13: =H15+H17 -> 0
C15: Kilómetros en carga (km)
C17: Kilómetros en vacío (km)
C19: Consumo medio por kilómetro en este servicio (litros / 100 km)
C21: Horas empleadas en este servicio | H21: =H23+H25+H27 -> 0
C23: Horas en carga
C25: Horas en vacío
H26: 6
C27: Horas en carga, descarga y paralización
C29: Peajes
C31: Coste por distancia de este servicio (€) | H31: =IFERROR(ROUND(H13*(H19/100)*'Cálculo Simplificado'!I37+H13*(('Cálculo Simplificado'!I43+'Cálculo Simplificado'!I45)/'Cálculo Simplificado'!I11)+H29,2),0) -> 0
C33: Coste por tiempo de este servicio (€) | H33: =IFERROR(H21*((Resultados!E11+Resultados!E12+Resultados!E13)/'Cálculo Simplificado'!I13),0) -> 0
C35: Otros costes asociados a este servicio (€)
C37: Coste total de este servicio (€) | H37: =IFERROR(H31+H33+H35,0) -> 0
